fUST/lending_fUST_20241205
["ID","MTS","AMOUNT","RATE_DAILY","PERIOD"]
[344306818,1733335841700,-500.0,0.00024931,7]
[344306819,1733335841710,-731.03,0.00024931,7]
[344306820,1733335841720,-500.0,0.00024931,7]
[344306821,1733335841729,-500.0,0.00024931,7]
[344306822,1733335841739,-500.0,0.00024931,7]
[344306823,1733335841749,-500.0,0.00024931,7]
[344306824,1733335841759,-485.58203107,0.00024931,7]
[344306825,1733335841768,-500.0,0.00024931,7]
[344306826,1733335841778,-500.0,0.00024931,7]
[344306827,1733335841787,-500.0,0.00024931,7]
[344306828,1733335841798,-500.0,0.00024931,7]
[344306829,1733335841807,-500.0,0.00024931,7]
[344306830,1733335841817,-539.85,0.00024931,7]
[344306831,1733335841826,-1472.45,0.00024931,7]
[344306832,1733335841838,-500.0,0.00024931,7]
[344306833,1733335841847,-500.0,0.00024931,7]
[344306834,1733335841858,-500.0,0.00024931,7]
[344306835,1733335841871,-587.17,0.00024931,7]
[344306836,1733335841880,-500.0,0.00024931,7]
[344306837,1733335841890,-500.0,0.00024931,7]
[344306838,1733335841899,-500.0,0.00024931,7]
[344306839,1733335841909,-591.54,0.00024931,7]
[344306840,1733335841919,-500.0,0.00024931,7]
[344306841,1733335841929,-578.77,0.00024931,7]
[344306842,1733335841939,-500.0,0.00024931,7]
[344306843,1733335841949,-500.0,0.00024931,7]
[344306844,1733335841960,-500.0,0.00024931,7]
[344306845,1733335841969,-500.0,0.00024931,7]
[344306846,1733335841979,-500.0,0.00024931,7]
[344306847,1733335841989,-500.0,0.00024931,7]
[344306848,1733335841998,-500.0,0.00024931,7]
[344306849,1733335842008,-500.0,0.00024931,7]
[344306850,1733335842018,-500.0,0.00024931,7]
[344306851,1733335842028,-448.07452385,0.00024931,7]
[344306852,1733335842038,-500.0,0.00024931,7]
[344306853,1733335842047,-500.0,0.00024931,7]
[344306854,1733335842058,-500.0,0.00024931,7]
[344306855,1733335842066,-354.54082786,0.00024931,7]
[344306856,1733335842074,-500.0,0.00024931,7]
[344306857,1733335842083,-500.0,0.00024931,7]
[344306858,1733335842093,-500.0,0.00024931,7]
[344306859,1733335842103,-500.0,0.00024931,7]
[344306860,1733335842115,-500.0,0.00024931,7]
[344306861,1733335842125,-500.0,0.00024931,7]
[344306862,1733335842135,-500.0,0.00024931,7]
[344306863,1733335842144,-500.0,0.00024931,7]
[344306864,1733335842154,-500.0,0.00024931,7]
[344306865,1733335842163,-1169.88,0.00024931,7]
[344306866,1733335842172,-500.0,0.00024931,2]
[344306867,1733335842184,-500.0,0.00024931,7]
[344306868,1733335842193,-500.0,0.00024931,7]
[344306869,1733335842204,-500.0,0.00024931,7]
[344306870,1733335842214,-500.0,0.00024931,7]
[344306871,1733335842224,-500.0,0.00024931,7]
[344306872,1733335842233,-500.0,0.00024931,7]
[344306873,1733335842243,-500.0,0.00024931,7]
[344306874,1733335842253,-500.0,0.00024931,7]
[344306875,1733335842263,-1993.14,0.00024931,7]
[344306876,1733335842272,-501.57192232,0.00024931,7]
[344306877,1733335842282,-500.0,0.00024931,7]
[344306878,1733335842292,-500.0,0.00024931,7]
[344306879,1733335842302,-500.0,0.00024931,7]
[344306880,1733335842311,-500.0,0.00024931,7]
[344306881,1733335842324,-500.0,0.00024931,7]
[344306882,1733335842334,-500.0,0.00024931,7]
[344306883,1733335842343,-500.0,0.00024931,7]
[344306884,1733335842353,-500.0,0.00024931,7]
[344306885,1733335842366,-428.45562402,0.00024931,7]
[344306886,1733335842376,-3095.31,0.00024931,7]
[344306887,1733335842385,-500.0,0.00024931,7]
[344306888,1733335842396,-500.0,0.00024931,7]
[344306889,1733335842407,-509.36,0.00024931,7]
[344306890,1733335842417,-500.0,0.00024931,7]
[344306891,1733335842426,-500.0,0.00024931,7]
[344306892,1733335842436,-506.95630828,0.00024931,7]
[344306893,1733335842446,-500.0,0.00024931,7]
[344306894,1733335842455,-500.0,0.00024931,7]
[344306895,1733335842465,-500.0,0.00024931,7]
[344306896,1733335842474,-1008.24,0.00024931,7]
[344306897,1733335842484,-752.54,0.00024931,7]
[344306898,1733335842493,-500.0,0.00024931,7]
[344306899,1733335842503,-1219.18,0.00024931,7]
[344306900,1733335842513,-500.0,0.00024931,7]
[344306901,1733335842523,-529.55,0.00024931,7]
[344306902,1733335842534,-500.0,0.00024931,7]
[344306903,1733335842544,-717.25,0.00024931,7]
[344306905,1733335842553,-500.0,0.00024931,7]
[344306906,1733335842563,-338.27212839,0.00024931,7]
[344306907,1733335842573,-2233.13,0.00024931,7]
[344306908,1733335842582,-500.0,0.00024931,7]
[344306909,1733335842592,-597.45,0.00024931,7]
[344306910,1733335842602,-500.0,0.00024931,7]
[344306912,1733335842616,-500.0,0.00024931,7]
[344306914,1733335842625,-500.0,0.00024931,7]
[344306915,1733335842635,-500.0,0.00024931,7]
[344306916,1733335842644,-500.0,0.00024931,7]
[344306917,1733335842654,-933.23,0.00024931,7]
[344306918,1733335842664,-1605.0,0.00024931,7]
[344306919,1733335842673,-500.0,0.00024931,7]
[344306920,1733335842683,-500.0,0.00024931,7]
[344306922,1733335842692,-571.72,0.00024931,7]
[344306924,1733335842702,-500.0,0.00024931,7]
[344306926,1733335842711,-500.0,0.00024931,7]
[344306928,1733335842721,-500.0,0.00024931,7]
[344306929,1733335842731,-723.72,0.00024931,7]
[344306930,1733335842740,-536.56,0.00024931,7]
[344306931,1733335842750,-572.72,0.00024931,7]
[344306932,1733335842760,-500.0,0.00024931,7]
[344306933,1733335842769,-500.0,0.00024931,7]
[344306934,1733335842779,-500.0,0.00024931,7]
[344306935,1733335842789,-500.0,0.00024931,7]
[344306936,1733335842799,-500.0,0.00024931,7]
[344306937,1733335842808,-500.0,0.00024931,7]
[344306938,1733335842817,-500.0,0.00024931,7]
[344306939,1733335842827,-500.0,0.00024931,7]
[344306940,1733335842837,-672.16,0.00024931,7]
[344306942,1733335842847,-9309.73,0.00024931,7]
[344306943,1733335842856,-697.38,0.00024931,7]
[344306944,1733335842870,-500.0,0.00024931,7]
[344306945,1733335842880,-164.99794146,0.00024931,7]
[344306946,1733335842890,-500.0,0.00024931,7]
[344306947,1733335842900,-500.0,0.00024931,7]
[344306948,1733335842909,-500.0,0.00024931,7]
[344306949,1733335842920,-500.0,0.00024931,7]
[344306950,1733335842929,-500.0,0.00024931,7]
[344306951,1733335842939,-500.0,0.00024931,7]
[344306952,1733335842950,-1000.0,0.00025,25]
[344306953,1733335842959,-420.0,0.00025186,2]
[344306954,1733335842969,-1416.86034,0.00025204,7]
[344306955,1733335842978,-552.07,0.00025205,7]
[344306956,1733335842988,-500.0,0.00025205,7]
[344306957,1733335842998,-500.0,0.00025205,7]
[344306959,1733335843008,-500.0,0.00025205,7]
[344306961,1733335843018,-500.0,0.00025205,7]
[344306963,1733335843027,-588.69,0.00025205,7]
[344306965,1733335843037,-500.0,0.00025205,7]
[344306967,1733335843047,-500.0,0.00025205,7]
[344306969,1733335843056,-576.69,0.00025205,7]
[344306971,1733335843066,-572.04,0.00025205,7]
[344306973,1733335843076,-715.39,0.00025205,7]
[344306975,1733335843086,-500.0,0.00025205,7]
[344306977,1733335843095,-500.0,0.00025205,7]
[344306979,1733335843105,-500.0,0.00025205,7]
[344306981,1733335843120,-731.03,0.00025205,7]
[344306983,1733335843130,-500.0,0.00025205,7]
[344306985,1733335843139,-500.0,0.00025205,7]
[344306987,1733335843148,-500.0,0.00025205,7]
[344306989,1733335843158,-500.0,0.00025205,7]
[344306991,1733335843168,-500.0,0.00025205,7]
[344306993,1733335843177,-500.0,0.00025205,7]
[344306995,1733335843188,-500.0,0.00025205,7]
[344306997,1733335843199,-500.0,0.00025205,7]
[344306999,1733335843209,-500.0,0.00025205,7]
[344307001,1733335843218,-539.85,0.00025205,7]
[344307003,1733335843227,-1472.45,0.00025205,7]
[344307005,1733335843238,-500.0,0.00025205,7]
[344307007,1733335843247,-587.17,0.00025205,7]
[344307009,1733335843257,-500.0,0.00025205,7]
[344307011,1733335843267,-500.0,0.00025205,7]
[344307013,1733335843277,-500.0,0.00025205,7]
[344307015,1733335843286,-591.54,0.00025205,7]
[344307017,1733335843296,-500.0,0.00025205,7]
[344307019,1733335843306,-578.77,0.00025205,7]
[344307021,1733335843320,-645.97951378,0.00025205,7]
[344307023,1733335843330,-500.0,0.00025205,7]
[344307025,1733335843340,-500.0,0.00025205,7]
[344307027,1733335843350,-500.0,0.00025205,7]
[344307029,1733335843367,-500.0,0.00025205,7]
[344307031,1733335843376,-500.0,0.00025205,7]
[344307033,1733335843386,-500.0,0.00025205,7]
[344307035,1733335843395,-500.0,0.00025205,7]
[344307037,1733335843408,-500.0,0.00025205,7]
[344307039,1733335843417,-500.0,0.00025205,7]
[344307041,1733335843428,-500.0,0.00025205,7]
[344307043,1733335843437,-500.0,0.00025205,7]
[344307045,1733335843447,-500.0,0.00025205,7]
[344307047,1733335843456,-500.0,0.00025205,7]
[344307049,1733335843466,-500.0,0.00025205,7]
[344307051,1733335843475,-500.0,0.00025205,7]
[344307053,1733335843486,-500.0,0.00025205,7]
[344307055,1733335843496,-1169.88,0.00025205,7]
[344307057,1733335843505,-500.0,0.00025205,7]
[344307059,1733335843514,-500.0,0.00025205,7]
[344307061,1733335843524,-500.0,0.00025205,7]
[344307063,1733335843534,-500.0,0.00025205,7]
[344307065,1733335843543,-500.0,0.00025205,7]
[344307067,1733335843553,-500.0,0.00025205,7]
[344307069,1733335843562,-1993.14,0.00025205,7]
[344307071,1733335843571,-605.59963978,0.00025205,7]
[344307073,1733335843580,-500.0,0.00025205,7]
[344307075,1733335843590,-500.0,0.00025205,7]
[344307077,1733335843600,-500.0,0.00025205,7]
[344307079,1733335843612,-500.0,0.00025205,7]
[344307081,1733335843622,-500.0,0.00025205,7]
[344307083,1733335843631,-3095.31,0.00025205,7]
[344307085,1733335843641,-500.0,0.00025205,7]
[344307087,1733335843651,-509.36,0.00025205,7]
[344307089,1733335843662,-500.0,0.00025205,7]
[344307091,1733335843671,-500.0,0.00025205,7]
[344307093,1733335843681,-500.0,0.00025205,7]
[344307095,1733335843691,-500.0,0.00025205,7]
[344307097,1733335843701,-500.0,0.00025205,7]
[344307098,1733335843710,-1008.24,0.00025205,7]
[344307100,1733335843721,-752.54,0.00025205,7]
[344307102,1733335843731,-500.0,0.00025205,7]
[344307104,1733335843890,-1219.18,0.00025205,7]
[344307105,1733335843901,-529.55,0.00025205,7]
[344307106,1733335843911,-500.0,0.00025205,7]
[344307107,1733335843921,-717.25,0.00025205,7]
[344307108,1733335843931,-500.0,0.00025205,7]
[344307109,1733335843940,-2233.13,0.00025205,7]
[344307110,1733335843950,-597.45,0.00025205,7]
[344307111,1733335843960,-500.0,0.00025205,7]
[344307112,1733335843970,-500.0,0.00025205,7]
[344307113,1733335843980,-933.23,0.00025205,7]
[344307114,1733335843989,-1605.0,0.00025205,7]
[344307115,1733335843999,-500.0,0.00025205,7]
[344307116,1733335844009,-500.0,0.00025205,7]
[344307119,1733335844018,-571.72,0.00025205,7]
[344307122,1733335844028,-500.0,0.00025205,7]
[344307124,1733335844038,-500.0,0.00025205,7]
[344307126,1733335844047,-723.72,0.00025205,7]
[344307128,1733335844057,-536.56,0.00025205,7]
[344307130,1733335844066,-572.72,0.00025205,7]
[344307132,1733335844075,-500.0,0.00025205,7]
[344307134,1733335844085,-500.0,0.00025205,7]
[344307136,1733335844095,-500.0,0.00025205,7]
[344307138,1733335844105,-500.0,0.00025205,7]
[344307140,1733335844118,-500.0,0.00025205,7]
[344307142,1733335844130,-500.0,0.00025205,7]
[344307144,1733335844140,-500.0,0.00025205,7]
[344307146,1733335844150,-672.16,0.00025205,7]
[344307148,1733335844159,-9309.73,0.00025205,7]
[344307150,1733335844168,-697.38,0.00025205,7]
[344307152,1733335844177,-500.0,0.00025205,7]
[344307154,1733335844188,-500.0,0.00025205,7]
[344307156,1733335844198,-500.0,0.00025205,7]
[344307158,1733335844208,-244.35556004,0.00025205,7]
[344307160,1733335844219,-500.0,0.00025205,7]
[344307162,1733335844229,-500.0,0.00025205,7]
[344307164,1733335844239,-1000.0,0.00025221,2]
[344307166,1733335844250,-1105.81118844,0.00025461,2]
[344307168,1733335844260,-552.07,0.00025479,7]
[344307170,1733335844269,-500.0,0.00025479,7]
[344307172,1733335844280,-500.0,0.00025479,7]
[344307174,1733335844290,-500.0,0.00025479,7]
[344307176,1733335844299,-500.0,0.00025479,7]
[344307178,1733335844308,-588.69,0.00025479,7]
[344307180,1733335844318,-500.0,0.00025479,7]
[344307182,1733335844331,-500.0,0.00025479,7]
[344307184,1733335844340,-576.69,0.00025479,7]
[344307186,1733335844350,-572.04,0.00025479,7]
[344307188,1733335844362,-715.39,0.00025479,7]
[344307190,1733335844371,-500.0,0.00025479,7]
[344307192,1733335844382,-483.64177039,0.00025479,7]
[344307194,1733335844391,-500.0,0.00025479,7]
[344307196,1733335844401,-731.03,0.00025479,7]
[344307198,1733335844411,-500.0,0.00025479,7]
[344307200,1733335844420,-500.0,0.00025479,7]
[344307202,1733335844430,-500.0,0.00025479,7]
[344307204,1733335844439,-500.0,0.00025479,7]
[344307206,1733335844449,-500.02,0.00025479,7]
[344307208,1733335844459,-500.0,0.00025479,7]
[344307210,1733335844468,-500.0,0.00025479,7]
[344307212,1733335844477,-500.0,0.00025479,7]
[344307214,1733335844487,-539.85,0.00025479,7]
[344307216,1733335844496,-1472.45,0.00025479,7]
[344307218,1733335844506,-500.0,0.00025479,7]
[344307221,1733335844516,-587.17,0.00025479,7]
[344307223,1733335844525,-500.0,0.00025479,7]
[344307225,1733335844535,-500.0,0.00025479,7]
[344307227,1733335844545,-526.26664275,0.00025479,7]
[344307229,1733335844554,-500.0,0.00025479,7]
[344307231,1733335844564,-591.54,0.00025479,7]
[344307233,1733335844573,-578.77,0.00025479,7]
[344307235,1733335844583,-500.0,0.00025479,7]
[344307237,1733335844593,-500.0,0.00025479,7]
[344307239,1733335844602,-500.0,0.00025479,7]
[344307241,1733335844615,-500.0,0.00025479,7]
[344307243,1733335844624,-500.0,0.00025479,7]
[344307245,1733335844633,-500.0,0.00025479,7]
[344307247,1733335844643,-500.0,0.00025479,7]
[344307248,1733335844652,-500.0,0.00025479,7]
[344307251,1733335844661,-500.0,0.00025479,7]
[344307252,1733335844671,-500.0,0.00025479,7]
[344307255,1733335844681,-171.93255698,0.00025479,7]
[344307257,1733335844691,-500.0,0.00025479,7]
[344307259,1733335844700,-500.0,0.00025479,7]
[344307261,1733335844710,-500.0,0.00025479,7]
[344307262,1733335844719,-500.0,0.00025479,7]
[344307265,1733335844728,-1169.88,0.00025479,7]
[344307267,1733335844738,-500.0,0.00025479,7]
[344307269,1733335844747,-500.0,0.00025479,7]
[344307271,1733335844757,-356.22668136,0.00025479,7]
[344307272,1733335844766,-500.0,0.00025479,7]
[344307275,1733335844776,-500.0,0.00025479,7]
[344307276,1733335844785,-500.0,0.00025479,7]
[344307278,1733335844795,-1993.14,0.00025479,7]
[344307280,1733335844804,-500.0,0.00025479,7]
[344307282,1733335844814,-500.0,0.00025479,7]
[344307284,1733335844823,-500.0,0.00025479,7]
[344307286,1733335844833,-500.0,0.00025479,7]
[344307288,1733335844843,-3095.31,0.00025479,7]
[344307290,1733335844852,-500.0,0.00025479,7]
[344307292,1733335844864,-509.36,0.00025479,7]
[344307294,1733335844874,-500.0,0.00025479,7]
[344307296,1733335844884,-500.0,0.00025479,7]
[344307298,1733335844894,-500.0,0.00025479,7]
[344307300,1733335844903,-500.0,0.00025479,7]
[344307302,1733335844913,-1008.24,0.00025479,7]
[344307304,1733335844923,-752.54,0.00025479,7]
[344307306,1733335844933,-1219.18,0.00025479,7]
[344307308,1733335844942,-529.55,0.00025479,7]
[344307310,1733335844952,-500.0,0.00025479,7]
[344307312,1733335844962,-717.25,0.00025479,7]
[344307314,1733335844971,-500.0,0.00025479,7]
[344307316,1733335844981,-2233.13,0.00025479,7]
[344307318,1733335844991,-597.45,0.00025479,7]
[344307320,1733335845000,-500.0,0.00025479,7]
[344307322,1733335845009,-500.0,0.00025479,7]
[344307324,1733335845018,-933.23,0.00025479,7]
[344307326,1733335845028,-1605.0,0.00025479,7]
[344307328,1733335845038,-500.0,0.00025479,7]
[344307330,1733335845047,-500.0,0.00025479,7]
[344307332,1733335845056,-571.72,0.00025479,7]
[344307334,1733335845066,-500.0,0.00025479,7]
[344307337,1733335845076,-723.72,0.00025479,7]
[344307339,1733335845086,-536.56,0.00025479,7]
[344307341,1733335845095,-572.72,0.00025479,7]
[344307343,1733335845105,-500.0,0.00025479,7]
[344307345,1733335845117,-500.0,0.00025479,7]
[344307347,1733335845126,-500.0,0.00025479,7]
[344307349,1733335845135,-251.11185992,0.00025479,7]
[344307351,1733335845144,-500.0,0.00025479,7]
[344307352,1733335845153,-500.0,0.00025479,7]
[344307354,1733335845162,-500.0,0.00025479,7]
[344307356,1733335845171,-672.16,0.00025479,7]
[344307358,1733335845181,-9309.73,0.00025479,7]
[344307360,1733335845191,-697.38,0.00025479,7]
[344307362,1733335845199,-500.0,0.00025479,7]
[344307364,1733335845209,-500.0,0.00025479,7]
[344307366,1733335845218,-247.15383549,0.00025479,7]
[344307369,1733335845228,-500.0,0.00025479,7]
[344307371,1733335845237,-420.0,0.00025527,2]
[344307373,1733335845246,-552.07,0.00025753,7]
[344307375,1733335845257,-500.0,0.00025753,7]
[344307377,1733335845267,-500.0,0.00025753,7]
[344307379,1733335845277,-500.0,0.00025753,7]
[344307380,1733335845286,-500.0,0.00025753,7]
[344307383,1733335845297,-588.69,0.00025753,7]
[344307384,1733335845307,-500.0,0.00025753,7]
[344307386,1733335845319,-500.0,0.00025753,7]
[344307388,1733335845332,-576.69,0.00025753,7]
[344307390,1733335845342,-572.04,0.00025753,7]
[344307392,1733335845351,-715.39,0.00025753,7]
[344307394,1733335845364,-500.0,0.00025753,7]
[344307396,1733335845374,-500.0,0.00025753,7]
[344307398,1733335845383,-731.03,0.00025753,7]
[344307400,1733335845393,-500.0,0.00025753,7]
[344307402,1733335845404,-500.0,0.00025753,7]
[344307404,1733335845414,-500.0,0.00025753,7]
[344307406,1733335845423,-500.0,0.00025753,7]
[344307408,1733335845433,-500.0,0.00025753,7]
[344307410,1733335845443,-500.0,0.00025753,7]
[344307412,1733335845452,-539.85,0.00025753,7]
[344307413,1733335845462,-1472.45,0.00025753,7]
[344307415,1733335845472,-500.0,0.00025753,7]
[344307417,1733335845481,-587.17,0.00025753,7]
[344307419,1733335845491,-500.0,0.00025753,7]
[344307421,1733335845502,-414.0926461,0.00025753,7]
[344307423,1733335845512,-500.0,0.00025753,7]
[344307424,1733335845521,-591.54,0.00025753,7]
[344307426,1733335845531,-578.77,0.00025753,7]
[344307428,1733335845540,-500.0,0.00025753,7]
[344307429,1733335845550,-500.0,0.00025753,7]
[344307431,1733335845560,-500.0,0.00025753,7]
[344307433,1733335845569,-500.0,0.00025753,7]
[344307435,1733335845579,-500.0,0.00025753,7]
[344307436,1733335845588,-500.0,0.00025753,7]
[344307437,1733335845598,-500.0,0.00025753,7]
[344307438,1733335845607,-500.0,0.00025753,7]
[344307439,1733335845620,-500.0,0.00025753,7]
[344307440,1733335845629,-500.0,0.00025753,7]
[344307441,1733335845638,-500.0,0.00025753,7]
[344307442,1733335845648,-500.0,0.00025753,7]
[344307443,1733335845657,-500.0,0.00025753,7]
[344307444,1733335845668,-1169.88,0.00025753,7]
[344307445,1733335845678,-500.0,0.00025753,7]
[344307446,1733335845688,-500.0,0.00025753,7]
[344307447,1733335845698,-500.0,0.00025753,7]
[344307448,1733335845707,-500.0,0.00025753,7]
[344307449,1733335845717,-500.0,0.00025753,7]
[344307450,1733335845727,-1993.14,0.00025753,7]
[344307451,1733335845738,-309.71505697,0.00025753,7]
[344307452,1733335845747,-500.0,0.00025753,7]
[344307453,1733335845756,-500.0,0.00025753,7]
[344307454,1733335845766,-500.0,0.00025753,7]
[344307455,1733335845775,-3095.31,0.00025753,7]
[344307457,1733335845785,-500.0,0.00025753,7]
[344307458,1733335845794,-509.36,0.00025753,7]
[344307460,1733335845804,-500.0,0.00025753,7]
[344307461,1733335845813,-500.0,0.00025753,7]
[344307462,1733335845822,-500.0,0.00025753,7]
[344307463,1733335845831,-500.0,0.00025753,7]
[344307464,1733335845842,-1008.24,0.00025753,7]
[344307465,1733335845851,-752.54,0.00025753,7]
[344307466,1733335845863,-1219.18,0.00025753,7]
[344307467,1733335845872,-529.55,0.00025753,7]
[344307468,1733335845881,-500.0,0.00025753,7]
[344307469,1733335845891,-717.25,0.00025753,7]
[344307470,1733335845900,-500.0,0.00025753,7]
[344307471,1733335845911,-2233.13,0.00025753,7]
[344307472,1733335845921,-597.45,0.00025753,7]
[344307473,1733335845931,-500.0,0.00025753,7]
[344307474,1733335845941,-500.0,0.00025753,7]
[344307475,1733335845950,-933.23,0.00025753,7]
[344307476,1733335845959,-1605.0,0.00025753,7]
[344307477,1733335845969,-500.0,0.00025753,7]
[344307478,1733335845978,-500.0,0.00025753,7]
[344307479,1733335845988,-571.72,0.00025753,7]
[344307480,1733335845997,-500.0,0.00025753,7]
[344307481,1733335846006,-723.72,0.00025753,7]
[344307482,1733335846016,-536.56,0.00025753,7]
[344307483,1733335846027,-572.72,0.00025753,7]
[344307484,1733335846037,-500.0,0.00025753,7]
[344307485,1733335846046,-500.0,0.00025753,7]
[344307486,1733335846056,-500.0,0.00025753,7]
[344307487,1733335846064,-500.0,0.00025753,7]
[344307488,1733335846074,-500.0,0.00025753,7]
[344307489,1733335846083,-500.0,0.00025753,7]
[344307490,1733335846092,-672.16,0.00025753,7]
[344307491,1733335846102,-9309.73,0.00025753,7]
[344307492,1733335846114,-697.38,0.00025753,7]
[344307493,1733335846123,-500.0,0.00025753,7]
[344307494,1733335846133,-500.0,0.00025753,7]
[344307495,1733335846143,-500.0,0.00025753,7]
[344307496,1733335846153,-1000.0,0.00026,26]
[344307498,1733335846163,-437.32,0.00026017,3]
[344307500,1733335846173,-552.07,0.00026027,7]
[344307501,1733335846183,-500.0,0.00026027,7]
[344307503,1733335846193,-500.0,0.00026027,7]
[344307505,1733335846203,-500.0,0.00026027,7]
[344307508,1733335846212,-564.17,0.00026027,7]
[344307511,1733335846222,-588.69,0.00026027,7]
[344307513,1733335846231,-500.0,0.00026027,7]
[344307515,1733335846240,-500.0,0.00026027,7]
[344307518,1733335846249,-576.69,0.00026027,7]
[344307521,1733335846258,-572.04,0.00026027,7]
[344307524,1733335846267,-715.39,0.00026027,7]
[344307526,1733335846276,-500.0,0.00026027,7]
[344307527,1733335846286,-500.0,0.00026027,7]
[344307528,1733335846295,-731.03,0.00026027,7]
[344307529,1733335846304,-500.0,0.00026027,7]
[344307530,1733335846315,-591.81,0.00026027,7]
[344307531,1733335846325,-500.0,0.00026027,7]
[344307532,1733335846335,-500.0,0.00026027,7]
[344307533,1733335846344,-500.0,0.00026027,7]
[344307534,1733335846355,-500.0,0.00026027,7]
[344307535,1733335846368,-539.85,0.00026027,7]
[344307536,1733335846377,-1472.45,0.00026027,7]
[344307537,1733335846387,-500.0,0.00026027,7]
[344307538,1733335846396,-587.17,0.00026027,7]
[344307539,1733335846408,-316.437635,0.00026027,7]
[344307540,1733335846417,-500.0,0.00026027,7]
[344307541,1733335846427,-591.54,0.00026027,7]
[344307542,1733335846436,-578.77,0.00026027,7]
[344307543,1733335846447,-500.0,0.00026027,7]
[344307544,1733335846456,-500.0,0.00026027,7]
[344307545,1733335846466,-500.0,0.00026027,7]
[344307546,1733335846475,-500.0,0.00026027,7]
[344307547,1733335846484,-500.0,0.00026027,7]
[344307548,1733335846494,-500.0,0.00026027,7]
[344307549,1733335846503,-500.0,0.00026027,7]
[344307550,1733335846513,-500.0,0.00026027,7]
[344307551,1733335846522,-500.0,0.00026027,7]
[344307552,1733335846532,-500.0,0.00026027,7]
[344307553,1733335846541,-500.0,0.00026027,7]
[344307554,1733335846550,-500.0,0.00026027,7]
[344307555,1733335846560,-500.0,0.00026027,7]
[344307556,1733335846569,-1169.88,0.00026027,7]
[344307557,1733335846578,-500.0,0.00026027,7]
[344307558,1733335846588,-500.0,0.00026027,7]
[344307559,1733335846597,-500.0,0.00026027,7]
[344307560,1733335846606,-500.0,0.00026027,7]
[344307561,1733335846619,-500.0,0.00026027,7]
[344307562,1733335846629,-1993.14,0.00026027,7]
[344307563,1733335846638,-500.0,0.00026027,7]
[344307564,1733335846647,-500.0,0.00026027,7]
[344307565,1733335846657,-500.0,0.00026027,7]
[344307566,1733335846666,-3095.31,0.00026027,7]
[344307567,1733335846675,-500.0,0.00026027,7]
[344307568,1733335846685,-509.36,0.00026027,7]
[344307569,1733335846694,-500.0,0.00026027,7]
[344307570,1733335846704,-500.0,0.00026027,7]
[344307571,1733335846713,-500.0,0.00026027,7]
[344307572,1733335846723,-500.0,0.00026027,7]
[344307573,1733335846731,-1008.24,0.00026027,7]
[344307574,1733335846741,-752.54,0.00026027,7]
[344307575,1733335846750,-1219.18,0.00026027,7]
[344307576,1733335846760,-529.55,0.00026027,7]